[Event "Malawi Championship (W)"]
[Site "followchess.com"]
[Date "2022.04.16"]
[Round "5"]
[White "Namangale, Susan"]
[Black "Jambo, Linda"]
[Result "1/2-1/2"]
[WhiteElo "1301"]
[BlackElo "1450"]
[ECO "D00"]
[WhiteFed "MAW"]
[BlackFed "MAW"]
[FCGameId "-2010848649"]
[WhiteFideId "20501790"]
[BlackFideId "16400054"]
[TimeControl "5400+00"]

1. d4 {[%clk 1:29:14]} d5 {[%clk 1:29:43]} 2. e3 {[%clk 1:28:36]} Nf6 
{[%clk 1:29:29]} 3. Bd3 {[%clk 1:28:16]} Nc6 4. Nc3 {[%clk 1:27:46]} e6 
{[%clk 1:28:24]} 5. a3 {[%clk 1:27:32]} b6 {[%clk 1:26:56]} 6. Bd2 
{[%clk 1:27:02]} a5 {[%clk 1:26:46]} 7. Bb5 Bb7 {[%clk 1:25:15]} 8. Nf3 
{[%clk 1:26:01]} Bd6 {[%clk 1:24:42]} 9. O-O O-O 10. Ne2 {[%clk 1:21:53]} Ne7 
{[%clk 1:22:25]} 11. Bd3 {[%clk 1:21:20]} Ba6 {[%clk 1:22:12]} 12. Bxa6 
{[%clk 1:18:38]} Rxa6 {[%clk 1:22:05]} 13. Nc3 {[%clk 1:16:37]} Nc6 
{[%clk 1:18:28]} 14. Qe2 {[%clk 1:15:43]} Ra8 {[%clk 1:18:21]} 15. Nb5 
{[%clk 1:13:06]} Re8 {[%clk 1:16:58]} 16. Nxd6 {[%clk 1:12:13]} Qxd6 
{[%clk 1:16:45]} 17. a4 {[%clk 1:09:39]} Qd8 {[%clk 1:14:25]} 18. Rac1 
{[%clk 1:07:53]} Ne4 {[%clk 1:13:17]} 19. Be1 {[%clk 1:07:18]} e5 
{[%clk 1:07:31]} 20. Qb5 {[%clk 1:04:55]} Qf6 {[%clk 1:04:20]} 21. Qxd5 
{[%clk 1:03:18]} exd4 {[%clk 1:03:41]} 22. c3 {[%clk 0:59:46]} dxe3 
{[%clk 1:01:26]} 23. fxe3 {[%clk 0:59:17]} Qe6 {[%clk 0:59:04]} 24. Qh5 
{[%clk 0:57:09]} Nf6 {[%clk 0:58:27]} 25. Qb5 {[%clk 0:53:53]} Qxe3+ 26. Bf2 
{[%clk 0:53:38]} Qe6 {[%clk 0:49:26]} 27. Rfe1 {[%clk 0:53:03]} Qd5 
{[%clk 0:48:35]} 28. c4 {[%clk 0:50:07]} Qxb5 {[%clk 0:48:16]} 29. cxb5 
{[%clk 0:49:49]} Nb4 {[%clk 0:42:11]} 30. Rxc7 {[%clk 0:49:25]} Nd3 
{[%clk 0:40:26]} 31. Rxe8+ {[%clk 0:48:49]} Rxe8 {[%clk 0:40:24]} 32. Bxb6 
{[%clk 0:47:54]} Nd5 {[%clk 0:40:08]} 33. Rd7 {[%clk 0:46:01]} Nxb6 
{[%clk 0:39:53]} 34. Rxd3 {[%clk 0:45:08]} Nxa4 {[%clk 0:39:22]} 35. Ra3 
{[%clk 0:43:51]} Nxb2 {[%clk 0:39:02]} 36. Rxa5 {[%clk 0:43:21]} g6 
{[%clk 0:38:48]} 37. Ra7 {[%clk 0:43:11]} Rb8 {[%clk 0:37:45]} 38. Ng5 
{[%clk 0:41:35]} Rxb5 {[%clk 0:36:52]} 39. Nxf7 {[%clk 0:41:19]} Nd3 
{[%clk 0:35:29]} 40. Kf1 {[%clk 0:40:28]} Rb1+ {[%clk 0:34:10]} 41. Ke2 
{[%clk 0:40:02]} Nf4+ 42. Kf3 {[%clk 0:39:21]} Rf1+ 43. Kg4 {[%clk 0:38:45]} 
Nxg2 {[%clk 0:31:40]} 44. Ng5 {[%clk 0:35:48]} Ne3+ {[%clk 0:30:49]} 45. Kh3 
{[%clk 0:34:55]} h6 {[%clk 0:28:07]} 46. Ne6 {[%clk 0:34:18]} g5 
{[%clk 0:23:50]} 47. Kg3 {[%clk 0:32:15]} Nf5+ {[%clk 0:16:20]} 48. Kg4 
{[%clk 0:31:27]} Ne3+ {[%clk 0:14:23]} 49. Kh5 {[%clk 0:30:05]} Rf6 
{[%clk 0:12:22]} 50. Rg7+ {[%clk 0:28:04]} Kh8 {[%clk 0:11:16]} 51. Rg6 
{[%clk 0:27:22]} Rxg6 {[%clk 0:10:33]} 52. Kxg6 {[%clk 0:27:13]} Kg8 
{[%clk 0:09:42]} 53. Kxh6 {[%clk 0:26:47]} Ng4+ 1/2-1/2

[Event "Malawi Championship (W)"]
[Site "followchess.com"]
[Date "2022.04.16"]
[Round "5"]
[White "Msiska, Royce"]
[Black "Kapalamula Martha"]
[Result "0-1"]
[WhiteElo "1271"]
[BlackElo "1155"]
[ECO "B30"]
[WhiteFed "MAW"]
[BlackFed "MAW"]
[FCGameId "-670004808"]
[WhiteFideId "16400194"]
[BlackFideId "20505116"]
[TimeControl "5400+00"]

1. e4 {[%clk 1:29:56]} c5 2. Nf3 Nc6 {[%clk 1:28:39]} 3. Bc4 {[%clk 1:29:34]} e6 
{[%clk 1:27:21]} 4. O-O {[%clk 1:29:20]} a6 {[%clk 1:25:01]} 5. d4 
{[%clk 1:28:31]} d5 {[%clk 1:18:52]} 6. exd5 exd5 {[%clk 1:16:31]} 7. Be2 
{[%clk 1:27:10]} Nf6 {[%clk 1:15:51]} 8. c4 {[%clk 1:23:11]} Be7 
{[%clk 1:15:07]} 9. Nc3 {[%clk 1:22:14]} O-O {[%clk 1:14:48]} 10. dxc5 
{[%clk 1:21:44]} Bxc5 {[%clk 1:14:16]} 11. cxd5 {[%clk 1:21:15]} Nb4 
{[%clk 1:08:30]} 12. Bc4 {[%clk 1:19:15]} b5 {[%clk 1:08:05]} 13. Bb3 
{[%clk 1:18:11]} Bf5 {[%clk 1:07:11]} 14. Nd4 {[%clk 1:12:02]} Bg6 
{[%clk 1:03:39]} 15. Nf3 {[%clk 1:08:29]} Qd6 {[%clk 1:03:06]} 16. h3 
{[%clk 1:05:42]} Qg3 {[%clk 1:01:48]} 17. Ne2 {[%clk 1:04:27]} Qd6 
{[%clk 1:00:46]} 18. Nf4 {[%clk 1:00:11]} Be4 {[%clk 0:58:05]} 19. a3 
{[%clk 0:59:44]} Nbxd5 {[%clk 0:54:19]} 20. Nxd5 {[%clk 0:56:21]} Nxd5 
{[%clk 0:52:34]} 21. Ng5 {[%clk 0:55:44]} Bxg2 {[%clk 0:40:47]} 22. Kxg2 
{[%clk 0:54:44]} Nf4+ {[%clk 0:40:21]} 23. Bxf4 {[%clk 0:53:09]} Qxf4 
{[%clk 0:40:00]} 24. Nf3 {[%clk 0:52:02]} Qe4 {[%clk 0:38:33]} 25. Bc2 
{[%clk 0:50:22]} Qc6 {[%clk 0:37:34]} 26. Qd3 {[%clk 0:48:47]} g6 
{[%clk 0:37:00]} 27. b4 {[%clk 0:47:03]} Rad8 {[%clk 0:36:26]} 28. Qc3 
{[%clk 0:46:05]} Bd4 {[%clk 0:35:09]} 29. Qb3 {[%clk 0:42:43]} Bxa1 
{[%clk 0:34:02]} 30. Rxa1 {[%clk 0:42:23]} Rd2 {[%clk 0:33:38]} 31. Rc1 
{[%clk 0:33:00]} Re8 {[%clk 0:33:24]} 32. Kg3 {[%clk 0:27:40]} Rde2 
{[%clk 0:29:42]} 33. Nd4 {[%clk 0:25:21]} Qd6+ {[%clk 0:29:04]} 34. Kg2 
{[%clk 0:24:43]} Qxd4 {[%clk 0:28:12]} 35. Rf1 {[%clk 0:23:33]} R8e5 
{[%clk 0:27:31]} 36. Kh1 {[%clk 0:22:10]} Qd7 {[%clk 0:24:14]} 37. f4 
{[%clk 0:19:59]} Qc6+ {[%clk 0:22:10]} 38. Kg1 {[%clk 0:19:44]} 0-1

[Event "Malawi Championship (W)"]
[Site "followchess.com"]
[Date "2022.04.16"]
[Round "4"]
[White "Jambo, Linda"]
[Black "Shriyan santosh Priyasha"]
[Result "0-1"]
[WhiteElo "1450"]
[BlackElo "1583"]
[ECO "B06"]
[WhiteFed "MAW"]
[BlackFed "MAW"]
[FCGameId "559692917"]
[WhiteFideId "16400054"]
[BlackFideId "20505353"]
[TimeControl "5400+00"]

1. e4 {[%clk 1:29:59]} g6 {[%clk 1:01:20]} 2. d4 {[%clk 1:29:04]} Bg7 
{[%clk 1:01:00]} 3. Nf3 {[%clk 1:28:03]} d6 {[%clk 1:00:39]} 4. Be3 
{[%clk 1:27:27]} Nf6 {[%clk 1:00:09]} 5. Nc3 {[%clk 1:27:10]} a6 
{[%clk 0:59:39]} 6. Bc4 {[%clk 1:26:51]} b5 {[%clk 0:58:34]} 7. Bb3 
{[%clk 1:26:23]} Bb7 {[%clk 0:57:36]} 8. d5 {[%clk 1:26:03]} c6 {[%clk 0:57:01]} 
9. a3 {[%clk 1:24:36]} cxd5 {[%clk 0:56:29]} 10. Nxd5 {[%clk 1:23:54]} Nbd7 
{[%clk 0:55:32]} 11. Nxf6+ Bxf6 {[%clk 0:50:21]} 12. Bd4 {[%clk 1:14:51]} Bxe4 
{[%clk 0:48:16]} 13. Bxf6 {[%clk 1:14:20]} Bxf3 {[%clk 0:48:01]} 14. Qxf3 
{[%clk 1:13:16]} Nxf6 {[%clk 0:47:43]} 15. O-O {[%clk 1:12:50]} O-O 
{[%clk 0:47:11]} 16. Rfe1 {[%clk 1:12:16]} e6 {[%clk 0:42:48]} 17. Rad1 
{[%clk 1:10:10]} d5 {[%clk 0:41:54]} 18. c4 {[%clk 1:08:59]} bxc4 
{[%clk 0:40:41]} 19. Bxc4 {[%clk 1:07:02]} Ne4 {[%clk 0:37:53]} 20. Bd3 
{[%clk 1:02:41]} Nc5 21. Bc2 {[%clk 0:59:54]} Rb8 {[%clk 0:32:25]} 22. b4 
{[%clk 0:59:28]} Nd7 {[%clk 0:32:01]} 23. Bb3 {[%clk 0:53:02]} a5 
{[%clk 0:30:54]} 24. bxa5 {[%clk 0:47:33]} Qxa5 {[%clk 0:29:50]} 25. Bc2 
{[%clk 0:44:47]} Rb2 {[%clk 0:28:43]} 26. Bb1 {[%clk 0:43:04]} Rfb8 
{[%clk 0:27:34]} 27. g3 {[%clk 0:42:03]} R2b3 {[%clk 0:26:51]} 28. Qf4 
{[%clk 0:39:12]} Qxa3 {[%clk 0:26:04]} 29. Re3 {[%clk 0:37:02]} Rxe3 
{[%clk 0:24:46]} 30. fxe3 {[%clk 0:36:29]} Rb2 {[%clk 0:22:37]} 31. Qd4 
{[%clk 0:32:54]} Rb4 {[%clk 0:20:52]} 32. Qd3 {[%clk 0:29:08]} Rb3 
{[%clk 0:20:05]} 33. Qc2 {[%clk 0:26:37]} Rxe3 {[%clk 0:17:52]} 34. Rd3 
{[%clk 0:23:39]} Rxd3 {[%clk 0:17:05]} 35. Qxd3 {[%clk 0:23:36]} Qxd3 
{[%clk 0:16:32]} 36. Bxd3 {[%clk 0:23:33]} Nc5 {[%clk 0:16:13]} 37. Bb5 
{[%clk 0:23:19]} Kg7 {[%clk 0:15:41]} 38. Kf2 {[%clk 0:23:18]} Kf6 
{[%clk 0:15:26]} 39. Ke3 {[%clk 0:23:17]} e5 {[%clk 0:15:11]} 40. Bc6 
{[%clk 0:22:41]} Ke6 {[%clk 0:14:37]} 41. g4 {[%clk 0:20:35]} d4+ 42. Kd2 
{[%clk 0:20:13]} e4 {[%clk 0:13:27]} 43. Bb5 {[%clk 0:19:43]} Ke5 
{[%clk 0:13:03]} 44. h3 {[%clk 0:19:22]} f5 {[%clk 0:12:49]} 45. g5 
{[%clk 0:18:45]} f4 {[%clk 0:12:35]} 46. Bf1 {[%clk 0:15:41]} e3+ 47. Kc2 
{[%clk 0:15:17]} f3 {[%clk 0:10:14]} 48. Bb5 {[%clk 0:12:02]} e2 
{[%clk 0:09:27]} 49. Bxe2 {[%clk 0:11:29]} fxe2 {[%clk 0:09:14]} 50. Kd2 
{[%clk 0:11:28]} d3 {[%clk 0:08:43]} 51. h4 {[%clk 0:11:22]} Ne4+ 
{[%clk 0:07:59]} 52. Kxd3 {[%clk 0:11:15]} e1=Q {[%clk 0:06:53]} 53. h5 
{[%clk 0:11:09]} Qc3+ {[%clk 0:06:39]} 54. Ke2 {[%clk 0:11:02]} Qd2+ 
{[%clk 0:06:19]} 55. Kf3 {[%clk 0:10:45]} Qf2+ {[%clk 0:06:06]} 56. Kg4 
{[%clk 0:10:34]} Qg3# {[%clk 0:05:48]} 0-1

[Event "Malawi Championship (W)"]
[Site "followchess.com"]
[Date "2022.04.16"]
[Round "4"]
[White "Kapalamula Martha"]
[Black "Msukwa, Tupokiwe"]
[Result "0-1"]
[WhiteElo "1155"]
[BlackElo "1371"]
[ECO "B50"]
[WhiteFed "MAW"]
[BlackFed "MAW"]
[FCGameId "-597349509"]
[WhiteFideId "20505116"]
[BlackFideId "20500459"]
[TimeControl "5400+00"]

1. e4 {[%clk 1:29:54]} c5 {[%clk 1:29:55]} 2. Nf3 {[%clk 1:29:21]} d6 
{[%clk 1:29:51]} 3. h3 {[%clk 1:28:41]} Nc6 {[%clk 1:29:38]} 4. Bb5 Bd7 5. c3 
{[%clk 1:27:21]} Nf6 {[%clk 1:28:32]} 6. d3 {[%clk 1:23:40]} e6 {[%clk 1:27:39]} 
7. Bg5 {[%clk 1:20:04]} Be7 {[%clk 1:27:30]} 8. e5 {[%clk 1:15:50]} Nxe5 
{[%clk 1:26:53]} 9. Bxd7+ Nexd7 10. Nbd2 {[%clk 1:12:54]} a6 {[%clk 1:21:28]} 
11. O-O {[%clk 1:11:45]} b5 {[%clk 1:18:49]} 12. Nh2 {[%clk 1:04:30]} O-O 
{[%clk 1:15:50]} 13. f4 {[%clk 0:59:14]} Nd5 {[%clk 1:14:19]} 14. Qe2 
{[%clk 0:52:32]} Bxg5 {[%clk 1:13:28]} 15. fxg5 {[%clk 0:52:00]} Qxg5 
{[%clk 1:13:00]} 16. Ng4 {[%clk 0:49:23]} Nf4 {[%clk 0:59:42]} 17. Rxf4 
{[%clk 0:44:30]} Qxf4 {[%clk 0:59:29]} 18. Rf1 {[%clk 0:44:12]} Qg5 
{[%clk 0:58:07]} 19. Ne4 {[%clk 0:43:35]} Qe7 {[%clk 0:57:49]} 20. Ng3 
{[%clk 0:40:44]} Ne5 {[%clk 0:54:38]} 21. Nxe5 {[%clk 0:37:32]} dxe5 
{[%clk 0:54:32]} 22. Qxe5 {[%clk 0:36:25]} f6 {[%clk 0:54:12]} 23. Qe4 
{[%clk 0:35:18]} Qf7 {[%clk 0:51:44]} 24. Qg4 {[%clk 0:33:41]} Rae8 
{[%clk 0:49:02]} 25. h4 {[%clk 0:31:00]} Qg6 {[%clk 0:47:49]} 26. Qf3 
{[%clk 0:30:04]} Rd8 {[%clk 0:47:08]} 27. Ne4 {[%clk 0:28:09]} Rd5 
{[%clk 0:44:54]} 28. g4 {[%clk 0:23:59]} Rf5 {[%clk 0:42:51]} 29. Qg3 
{[%clk 0:22:59]} Rxf1+ 30. Kxf1 {[%clk 0:22:41]} f5 {[%clk 0:37:14]} 31. gxf5 
{[%clk 0:20:54]} exf5 {[%clk 0:34:40]} 32. Ng5 {[%clk 0:20:34]} h6 
{[%clk 0:33:56]} 33. Qf3 {[%clk 0:16:17]} hxg5 {[%clk 0:33:24]} 34. Qd5+ 
{[%clk 0:16:03]} Qf7 {[%clk 0:32:31]} 35. Qxf7+ {[%clk 0:14:22]} Rxf7 
{[%clk 0:32:25]} 36. hxg5 {[%clk 0:14:11]} Re7 {[%clk 0:31:01]} 37. b3 
{[%clk 0:13:40]} Re3 {[%clk 0:30:25]} 38. c4 {[%clk 0:13:10]} Rxd3 
{[%clk 0:29:45]} 39. cxb5 {[%clk 0:12:49]} axb5 {[%clk 0:29:38]} 40. Ke2 
{[%clk 0:11:33]} Rh3 {[%clk 0:28:36]} 41. Kf1 {[%clk 0:10:20]} Kf7 
{[%clk 0:28:22]} 42. Kg2 {[%clk 0:09:51]} Rc3 {[%clk 0:28:11]} 43. Kf1 
{[%clk 0:09:20]} Rc2 {[%clk 0:28:08]} 44. a4 {[%clk 0:07:17]} bxa4 
{[%clk 0:28:03]} 45. bxa4 {[%clk 0:07:05]} Ra2 {[%clk 0:27:38]} 46. a5 
{[%clk 0:06:49]} Rxa5 {[%clk 0:27:36]} 47. Ke2 Ra3 {[%clk 0:27:14]} 0-1

[Event "Malawi Championship (W)"]
[Site "followchess.com"]
[Date "2022.04.16"]
[Round "4"]
[White "Namangale, Susan"]
[Black "Msiska, Royce"]
[Result "1-0"]
[WhiteElo "1301"]
[BlackElo "1271"]
[ECO "C50"]
[WhiteFed "MAW"]
[BlackFed "MAW"]
[FCGameId "930810035"]
[WhiteFideId "20501790"]
[BlackFideId "16400194"]
[TimeControl "5400+00"]

1. e4 {[%clk 1:30:00]} e5 {[%clk 1:29:55]} 2. Nf3 {[%clk 1:29:57]} Nc6 
{[%clk 1:29:48]} 3. Bc4 {[%clk 1:29:55]} Bc5 {[%clk 1:29:25]} 4. d3 
{[%clk 1:29:43]} Nf6 5. a3 {[%clk 1:29:23]} O-O {[%clk 1:28:17]} 6. b4 
{[%clk 1:29:11]} Bb6 {[%clk 1:27:20]} 7. b5 {[%clk 1:28:52]} Nd4 
{[%clk 1:27:04]} 8. c3 {[%clk 1:28:34]} Nxf3+ {[%clk 1:26:44]} 9. Qxf3 
{[%clk 1:28:30]} d6 {[%clk 1:26:12]} 10. O-O {[%clk 1:27:07]} Bg4 
{[%clk 1:25:51]} 11. Qg3 {[%clk 1:27:01]} h6 {[%clk 1:25:05]} 12. Be3 
{[%clk 1:26:32]} c5 {[%clk 1:19:56]} 13. h3 {[%clk 1:26:19]} Bh5 
{[%clk 1:18:38]} 14. Bxh6 {[%clk 1:26:07]} Bg6 {[%clk 1:17:52]} 15. Bg5 
{[%clk 1:25:41]} a6 {[%clk 1:14:16]} 16. bxa6 {[%clk 1:24:46]} bxa6 
{[%clk 1:14:04]} 17. Nd2 {[%clk 1:24:18]} d5 {[%clk 1:08:37]} 18. Bxd5 
{[%clk 1:24:11]} Rb8 {[%clk 1:07:50]} 19. c4 {[%clk 1:24:01]} Qd6 
{[%clk 1:07:22]} 20. Nf3 {[%clk 1:23:43]} Nh5 {[%clk 1:06:36]} 21. Qg4 
{[%clk 1:22:27]} Nf4 {[%clk 1:03:57]} 22. Bxf4 {[%clk 1:22:19]} exf4 
{[%clk 1:03:42]} 23. Nh4 {[%clk 1:22:07]} Kh8 {[%clk 1:01:54]} 24. Nxg6+ fxg6 
{[%clk 1:01:10]} 25. f3 {[%clk 1:20:37]} Bd8 {[%clk 0:59:28]} 26. Rab1 
{[%clk 1:19:10]} Rxb1 {[%clk 0:58:22]} 27. Rxb1 {[%clk 1:19:06]} Qf6 
{[%clk 0:54:11]} 28. Rb8 {[%clk 1:17:14]} Qd4+ 29. Kh2 {[%clk 1:17:06]} Qf2 
{[%clk 0:51:48]} 30. Qxg6 {[%clk 1:16:27]} Qg3+ 31. Qxg3 {[%clk 1:16:17]} fxg3+ 
32. Kg1 {[%clk 1:15:50]} Kh7 {[%clk 0:48:55]} 33. Kf1 {[%clk 1:15:42]} a5 
{[%clk 0:48:03]} 34. Ke2 {[%clk 1:15:36]} Kh6 {[%clk 0:47:22]} 35. Rc8 
{[%clk 1:15:07]} Kh5 {[%clk 0:45:19]} 36. Rxc5 {[%clk 1:15:03]} Bb6 
{[%clk 0:43:02]} 37. Rb5 {[%clk 1:14:57]} Rf6 {[%clk 0:42:09]} 38. e5 
{[%clk 1:14:15]} Rh6 {[%clk 0:41:25]} 39. e6 {[%clk 1:13:56]} Bd8 
{[%clk 0:39:39]} 40. Bc6+ Kh4 {[%clk 0:38:20]} 41. Bd7 {[%clk 1:12:26]} g5 
{[%clk 0:36:43]} 42. d4 {[%clk 1:12:08]} a4 {[%clk 0:33:34]} 43. d5 
{[%clk 1:12:00]} Kh5 {[%clk 0:32:09]} 44. d6 {[%clk 1:11:45]} Kg6 
{[%clk 0:31:51]} 45. e7 {[%clk 1:11:39]} Bxe7 {[%clk 0:30:14]} 46. dxe7 
{[%clk 1:11:38]} 1-0

[Event "Malawi Championship (W)"]
[Site "followchess.com"]
[Date "2022.04.16"]
[Round "4"]
[White "Mpinganjira, Ellen"]
[Black "Kumwenda Tina"]
[Result "1-0"]
[WhiteElo "1360"]
[BlackElo "1195"]
[ECO "C41"]
[WhiteFed "MAW"]
[BlackFed "MAW"]
[FCGameId "-1614897087"]
[WhiteFideId "16400100"]
[BlackFideId "20502338"]
[TimeControl "5400+00"]

1. e4 {[%clk 1:29:58]} e5 {[%clk 1:29:59]} 2. Nf3 {[%clk 1:29:56]} d6 
{[%clk 1:29:59]} 3. h3 {[%clk 1:29:54]} Nf6 {[%clk 1:29:56]} 4. Nc3 
{[%clk 1:29:52]} a6 {[%clk 1:29:56]} 5. Bc4 {[%clk 1:29:34]} h6 {[%clk 1:28:46]} 
6. d3 {[%clk 1:29:23]} Nc6 {[%clk 1:28:14]} 7. a3 {[%clk 1:29:16]} Be7 
{[%clk 1:27:31]} 8. O-O {[%clk 1:28:38]} O-O {[%clk 1:27:11]} 9. Ne2 
{[%clk 1:28:02]} Bd7 {[%clk 1:23:23]} 10. Bd2 {[%clk 1:27:40]} Qc8 
{[%clk 1:22:02]} 11. Ng3 {[%clk 1:25:05]} Nd8 {[%clk 1:16:51]} 12. Nh2 
{[%clk 1:23:46]} Be6 {[%clk 1:12:29]} 13. Ba2 {[%clk 1:22:01]} Bxa2 
{[%clk 1:08:57]} 14. Rxa2 {[%clk 1:21:59]} Qe6 {[%clk 1:08:45]} 15. Ra1 
{[%clk 1:21:55]} Nh7 {[%clk 1:05:37]} 16. Nf5 {[%clk 1:21:05]} Bg5 
{[%clk 1:00:10]} 17. f4 {[%clk 1:17:05]} exf4 {[%clk 0:58:34]} 18. Bxf4 
{[%clk 1:16:51]} Bxf4 {[%clk 0:58:05]} 19. Rxf4 {[%clk 1:16:43]} Qe5 
{[%clk 0:55:44]} 20. Qc1 {[%clk 1:14:38]} g5 {[%clk 0:53:18]} 21. Nxh6+ 
{[%clk 1:11:14]} Kg7 {[%clk 0:53:16]} 22. Nf5+ {[%clk 1:11:00]} Kh8 
{[%clk 0:52:28]} 23. Rf1 {[%clk 1:10:31]} Ne6 {[%clk 0:49:32]} 24. Ng4 
{[%clk 1:07:56]} Qc5+ {[%clk 0:49:00]} 25. Kh1 {[%clk 1:07:43]} Nf4 
{[%clk 0:48:23]} 26. b4 {[%clk 1:06:05]} Qb5 {[%clk 0:46:06]} 27. Qb2+ f6 
{[%clk 0:45:38]} 28. Ne7 {[%clk 1:02:24]} Rae8 {[%clk 0:43:34]} 29. Nf5 
{[%clk 1:01:49]} d5 {[%clk 0:42:54]} 30. Nd4 {[%clk 0:55:21]} Qd7 
{[%clk 0:41:09]} 31. exd5 {[%clk 0:49:32]} Qxd5 {[%clk 0:40:55]} 32. c4 
{[%clk 0:49:00]} Qf7 {[%clk 0:37:59]} 33. Rad1 {[%clk 0:46:41]} Qh5 
{[%clk 0:37:20]} 34. Rd2 {[%clk 0:41:11]} Nxh3 {[%clk 0:34:57]} 35. gxh3 
{[%clk 0:40:33]} Qxh3+ {[%clk 0:34:53]} 36. Nh2 {[%clk 0:40:23]} g4 
{[%clk 0:32:58]} 37. Rdf2 {[%clk 0:34:12]} Ng5 {[%clk 0:31:23]} 38. Kg1 
{[%clk 0:30:22]} g3 {[%clk 0:30:38]} 39. Rg2 {[%clk 0:28:06]} Kg7 
{[%clk 0:25:44]} 40. Nhf3 {[%clk 0:26:37]} Rh8 {[%clk 0:25:10]} 41. Nf5+ 
{[%clk 0:23:06]} Qxf5 {[%clk 0:21:24]} 42. Rxg3 {[%clk 0:21:05]} Kf7 
{[%clk 0:15:59]} 43. Nxg5+ fxg5 {[%clk 0:14:47]} 44. Rxf5+ Ke6 {[%clk 0:14:46]} 
45. Re5+ 1-0

[Event "Malawi Championship (W)"]
[Site "followchess.com"]
[Date "2022.04.16"]
[Round "4"]
[White "Tadeyo Charity"]
[Black "Banda Tapiwa"]
[Result "0-1"]
[WhiteElo "1096"]
[BlackElo "1114"]
[ECO "B00"]
[WhiteFed "MAW"]
[BlackFed "MAW"]
[FCGameId "1640602319"]
[WhiteFideId "20506988"]
[BlackFideId "20505230"]
[TimeControl "5400+00"]

1. e4 {[%clk 1:29:54]} b6 {[%clk 1:29:45]} 2. g3 {[%clk 1:29:26]} Bb7 
{[%clk 1:29:24]} 3. Bg2 {[%clk 1:29:09]} e5 {[%clk 1:28:47]} 4. Nf3 
{[%clk 1:28:58]} Bxe4 {[%clk 1:28:17]} 5. O-O {[%clk 1:27:59]} d6 
{[%clk 1:27:17]} 6. Nc3 {[%clk 1:27:36]} Bb7 {[%clk 1:26:56]} 7. d3 
{[%clk 1:27:12]} Nf6 {[%clk 1:26:28]} 8. a3 {[%clk 1:26:39]} Nbd7 
{[%clk 1:25:55]} 9. Re1 {[%clk 1:25:52]} c5 {[%clk 1:23:21]} 10. Ne4 
{[%clk 1:21:32]} Nxe4 {[%clk 1:22:13]} 11. dxe4 {[%clk 1:21:20]} Be7 
{[%clk 1:21:40]} 12. c4 {[%clk 1:20:37]} a5 {[%clk 1:21:04]} 13. a4 
{[%clk 1:19:58]} O-O {[%clk 1:20:40]} 14. b3 {[%clk 1:19:35]} f5 15. exf5 
{[%clk 1:16:26]} Rxf5 16. Nd2 {[%clk 1:16:04]} Bxg2 {[%clk 1:17:45]} 17. Kxg2 
{[%clk 1:15:56]} Qc7 {[%clk 1:16:51]} 18. Ne4 {[%clk 1:14:27]} Raf8 
{[%clk 1:16:31]} 19. Re2 {[%clk 1:12:14]} Nf6 20. Nxf6+ R5xf6 {[%clk 1:15:18]} 
21. Bg5 {[%clk 1:08:57]} Qb7+ 22. Kg1 {[%clk 1:07:52]} Rf3 {[%clk 1:14:10]} 23. 
Bxe7 {[%clk 1:06:47]} Qxe7 {[%clk 1:14:01]} 24. Qd5+ Kh8 {[%clk 1:13:43]} 25. 
Rb1 {[%clk 1:03:32]} h5 {[%clk 1:11:47]} 26. h4 {[%clk 1:00:13]} Qf6 
{[%clk 1:11:16]} 27. Rbb2 {[%clk 0:58:15]} Qg6 {[%clk 1:06:07]} 28. Kg2 
{[%clk 0:56:48]} R3f4 {[%clk 1:04:36]} 29. Kf1 {[%clk 0:52:22]} Qxg3 
{[%clk 1:02:44]} 30. Qh1 {[%clk 0:48:07]} Rxh4 {[%clk 1:00:13]} 31. Qg2 
{[%clk 0:46:22]} Qd3 {[%clk 0:57:20]} 32. Ke1 {[%clk 0:44:15]} Rg4 
{[%clk 0:56:15]} 33. Qh2 {[%clk 0:41:07]} h4 {[%clk 0:53:42]} 34. Re3 
{[%clk 0:39:55]} Qd4 {[%clk 0:52:47]} 35. Rd2 {[%clk 0:38:55]} Qf4 
{[%clk 0:47:36]} 36. Qxf4 {[%clk 0:37:58]} exf4 {[%clk 0:46:49]} 37. Rh3 
{[%clk 0:36:56]} f3 {[%clk 0:45:54]} 38. Rxd6 {[%clk 0:36:34]} Re8+ 
{[%clk 0:45:36]} 39. Kf1 {[%clk 0:34:56]} Rd4 {[%clk 0:38:37]} 40. Rxd4 
{[%clk 0:34:05]} cxd4 {[%clk 0:38:08]} 41. Rxf3 {[%clk 0:33:56]} g5 
{[%clk 0:37:19]} 42. Rd3 {[%clk 0:33:47]} Re4 {[%clk 0:36:56]} 43. f3 
{[%clk 0:33:28]} Rf4 {[%clk 0:36:18]} 44. Kg2 {[%clk 0:32:44]} Kg7 
{[%clk 0:35:52]} 45. Kh3 {[%clk 0:31:50]} Kf6 {[%clk 0:35:24]} 46. Kh2 
{[%clk 0:30:51]} Ke6 47. Kg2 {[%clk 0:30:27]} Kd6 {[%clk 0:35:00]} 48. Kf2 
{[%clk 0:30:14]} Kc5 49. Ke2 {[%clk 0:28:27]} h3 {[%clk 0:34:27]} 50. Rd1 
{[%clk 0:28:07]} Kb4 {[%clk 0:34:00]} 51. Rb1 {[%clk 0:26:29]} Kc3 
{[%clk 0:33:13]} 52. Kf2 {[%clk 0:24:25]} g4 {[%clk 0:32:51]} 53. Kg3 
{[%clk 0:23:37]} Rxf3+ {[%clk 0:32:25]} 54. Kxg4 {[%clk 0:23:23]} Re3 
{[%clk 0:32:16]} 55. Rd1 {[%clk 0:21:02]} d3 {[%clk 0:31:36]} 56. Kf4 
{[%clk 0:20:41]} Re2 {[%clk 0:31:19]} 57. Kf3 {[%clk 0:20:07]} h2 
{[%clk 0:30:45]} 58. Rc1+ {[%clk 0:18:12]} Kxb3 {[%clk 0:30:33]} 59. Kg3 
{[%clk 0:16:01]} d2 {[%clk 0:30:03]} 60. Rd1 {[%clk 0:14:57]} Kxc4 
{[%clk 0:29:28]} 61. Kf3 {[%clk 0:14:37]} Kc3 62. Rc1+ {[%clk 0:12:17]} 0-1

[Event "Malawi Championship (W)"]
[Site "followchess.com"]
[Date "2022.04.16"]
[Round "3"]
[White "Shriyan santosh Priyasha"]
[Black "Msiska, Royce"]
[Result "1-0"]
[WhiteElo "1583"]
[BlackElo "1271"]
[ECO "A20"]
[WhiteFed "MAW"]
[BlackFed "MAW"]
[FCGameId "-1649640015"]
[WhiteFideId "20505353"]
[BlackFideId "16400194"]
[TimeControl "5400+00"]

1. c4 {[%clk 1:29:49]} e5 {[%clk 1:29:48]} 2. g3 {[%clk 1:29:30]} Nc6 
{[%clk 1:29:27]} 3. Bg2 {[%clk 1:29:01]} Nf6 {[%clk 1:28:19]} 4. d3 
{[%clk 1:28:37]} d5 {[%clk 1:27:36]} 5. cxd5 {[%clk 1:28:10]} Nxd5 
{[%clk 1:27:06]} 6. a3 {[%clk 1:27:29]} Nf6 7. Nc3 {[%clk 1:25:48]} Bc5 
{[%clk 1:23:15]} 8. Nf3 {[%clk 1:25:01]} O-O {[%clk 1:22:35]} 9. O-O 
{[%clk 1:24:31]} Re8 {[%clk 1:21:25]} 10. b4 {[%clk 1:18:46]} Bd4 
{[%clk 1:17:25]} 11. Nxd4 {[%clk 1:17:25]} exd4 {[%clk 1:15:55]} 12. Na4 
{[%clk 1:14:07]} Bg4 {[%clk 1:11:55]} 13. Re1 {[%clk 1:13:06]} h6 
{[%clk 1:09:11]} 14. Bb2 {[%clk 1:11:26]} Rb8 {[%clk 1:03:10]} 15. Rc1 
{[%clk 1:09:28]} Ne5 {[%clk 0:57:52]} 16. Nc5 {[%clk 1:07:21]} b6 
{[%clk 0:53:29]} 17. Na6 {[%clk 1:05:11]} c5 {[%clk 0:46:09]} 18. Nxb8 
{[%clk 1:04:07]} Qxb8 {[%clk 0:46:04]} 19. Qb3 {[%clk 0:59:24]} Be6 
{[%clk 0:45:04]} 20. Qd1 {[%clk 0:54:30]} Bg4 {[%clk 0:42:27]} 21. Qd2 
{[%clk 0:53:28]} Qd6 {[%clk 0:40:11]} 22. bxc5 {[%clk 0:51:54]} bxc5 
{[%clk 0:39:51]} 23. Qa5 {[%clk 0:44:25]} Qb6 {[%clk 0:34:03]} 24. Qd2 
{[%clk 0:42:12]} Rb8 {[%clk 0:32:26]} 25. Ba1 {[%clk 0:40:50]} Qd6 
{[%clk 0:31:01]} 26. Qa5 {[%clk 0:39:24]} Qb6 {[%clk 0:28:20]} 27. Qxc5 
{[%clk 0:38:27]} Qxc5 {[%clk 0:27:51]} 28. Rxc5 {[%clk 0:38:12]} Nfd7 
{[%clk 0:26:06]} 29. Rc7 {[%clk 0:37:08]} a5 {[%clk 0:25:03]} 30. Bxd4 
{[%clk 0:35:07]} Ng6 {[%clk 0:21:41]} 31. Ra7 {[%clk 0:34:02]} Rd8 
{[%clk 0:17:35]} 32. Rxa5 {[%clk 0:33:05]} Ndf8 {[%clk 0:15:24]} 33. Be3 
{[%clk 0:32:23]} Ne6 {[%clk 0:13:53]} 34. h3 {[%clk 0:31:50]} 1-0